Cogmind - Beta 9.6 *** ADVENTURER MODE // 2020.07.16 @ 20:23:27 Player: Plexion Result: Destroyed by as-61464 with Assembled Heavy Rifle Performance ------------- Evolutions (0) 0 Regions Visited (4) 800 Robots Destroyed (15) 75 Value Destroyed (383) 383 Prototype IDs (2) 40 Alien Tech Used (0) 0 Bonus (374) 374 TOTAL SCORE: 1672 Bonus ------- Follower Combat Kills 74 Aligned with FarCom 300 Cogmind --------- Core Integrity 0/250 Matter 257/300 Energy 100/100 System Corruption 0% Temperature Cool (0) Movement Core (550) Ox10 Location -9/Mines Parts ------- > --- POWER (1) -------- (None) > --- PROPULSION (2) --- (None) > --- UTILITY (2) ------ Large Storage Unit Large Storage Unit > --- WEAPON (2) ------- (None) > --- INVENTORY (16) --- Light Nuclear Core Compact Wheel Improved Heat Sink Sensor Array Assault Rifle Light Assault Rifle Longsword +1 Signal Generator Peak State ------------ > --- POWER ------------ Light Nuclear Core > --- PROPULSION ------- Wheel Wheel > --- UTILITY ---------- Large Storage Unit > --- WEAPON ----------- Assault Rifle Longsword +1 > --- INVENTORY -------- Light Ion Engine Light Ion Engine Light Nuclear Core Wheel Improved Heat Sink Sensor Array Assault Rifle Light Assault Rifle Hammer Signal Generator [Rating: 16] Favorites ----------- Power Light Nuclear Core Engine Light Ion Engine Power Core Light Nuclear Core Propulsion Wheel Wheel Wheel Utility Large Storage Unit Device Skeleton Box Storage Large Storage Unit Weapon Assault Rifle Energy Gun Medium Laser Ballistic Gun Assault Rifle Slashing Weapon Longsword +1 Build | -11 -10 -10 -10 -9 ------- Run | Scr Mat Min Exi Min Slots Evolved . | . . . . . Power . | . . . . . Propulsion . | . . . . . Utility . | . . . . . Weapon . | . . . . . Parts Attached 18 | 6 3 2 4 3 Power 2 | 1 . 1 . . Engine 1 | 1 . . . . Core 1 | . . 1 . . Reactor . | . . . . . Propulsion 4 | 2 . 1 . 1 Treads . | . . . . . Leg . | . . . . . Wheel 4 | 2 . 1 . 1 Hover . | . . . . . Flight . | . . . . . Utility 5 | 1 2 . 2 . Device 1 | . . . 1 . Storage 4 | 1 2 . 1 . Processor . | . . . . . Hackware . | . . . . . Protection . | . . . . . Artifact . | . . . . . Weapon 7 | 2 1 . 2 2 Energy Gun 1 | 1 . . . . Energy Cannon . | . . . . . Ballistic Gun 5 | 1 1 . 1 2 Ballistic Cannon . | . . . . . Launcher . | . . . . . Special Weapon . | . . . . . Impact Weapon . | . . . . . Slashing Weapon 1 | . . . 1 . Piercing Weapon . | . . . . . Special Melee Weapon . | . . . . . Unidentified Prototypes 2 | . . . 2 . Parts Lost 7 | . . 1 . 6 Power 1 | . . . . 1 Propulsion 4 | . . 1 . 3 Utility . | . . . . . Weapon 2 | . . . . 2 Highest Loss Streak 5 | . . 1 . 5 Average Slot Usage (%) 97 | . 97 100 98 86 Engine 5 | . 14 4 . . Core 8 | . . 9 14 12 Wheel 26 | . 28 28 28 19 Storage 27 | . 26 28 27 28 Energy Gun 10 | . 14 14 6 . Ballistic Gun 16 | . 14 14 21 24 Naked Turns . | . . . . . Heaviest Build 41 | 10 39 41 41 41 Greatest Support 20 | 20 20 20 20 20 Greatest Overweight (x) 13 | . 1 2 2 13 Average Overweight (x) 1 | . . 1 1 2 Largest Inventory Capacity 16 | 6 16 16 16 16 Average Capacity 15 | 5 14 16 15 16 Most Carried 13 | 4 7 13 13 11 Average Carried 9 | 2 5 10 11 8 Final Capacity 16 | 6 16 16 16 16 Final Carried 13 | 4 7 13 11 8 Class Distribution -------------------- 100% | Mutant Dominant Class ---------------- Mutant | -10/Materials Mutant | -10/Mines Mutant | -10/Exiles Mutant | -9/Mines Resources | -11 -10 -10 -10 -9 ----------- Run | Scr Mat Min Exi Min Matter Collected 446 | 218 88 73 . 67 Remotely . | . . . . . Salvage Created 581 | 165 144 180 . 92 Parts 25 | 9 3 9 . 4 Haulers Intercepted 1 | . 1 . . . Recyclers Shooed 1 | . 1 . . . Parts Field Recycled . | . . . . . Retrieved Matter . | . . . . . Parts Self-Destructed . | . . . . . Prevented . | . . . . . Kills | -11 -10 -10 -10 -9 ------- Run | Scr Mat Min Exi Min Combat Hostiles Destroyed 10 | . 2 5 . 3 Guns 10 | . 2 5 . 3 Classes Destroyed 6 | 2 2 1 . 1 Tunneler 3 | 3 . . . . Hauler 1 | . 1 . . . Recycler 1 | 1 . . . . Swarmer 1 | . . 1 . . Grunt 8 | . 2 4 . 2 Assembled 1 | . . . . 1 Best Kill Streak 4 | 4 2 2 . 2 Combat Bots Only 2 | . 2 2 . 2 Max Kills in Single Turn 1 | 1 1 1 . 1 Gunslinging . | . . . . . Exploded . | . . . . . Melee . | . . . . . Uniques/NPCs Destroyed . | . . . . . Combat | -11 -10 -10 -10 -9 -------- Run | Scr Mat Min Exi Min Damage Taken 961 | . 77 151 . 733 Core 250 | . 23 4 . 223 Absorbed by Shields . | . . . . . Core Remaining (%) 100 | 100 . . . . Volleys Fired 56 | 10 16 16 . 14 Largest 2 | 2 2 2 . 2 Hottest 70 | 70 70 70 . 40 Shots Fired 110 | 20 32 32 . 26 Gun 110 | 20 32 32 . 26 Cannon . | . . . . . Launcher . | . . . . . Special . | . . . . . Kinetic 68 | 10 16 16 . 26 Thermal 42 | 10 16 16 . . Explosive . | . . . . . Electromagnetic . | . . . . . Robot Hit Streak 15 | 11 11 15 . 8 Robot Miss Streak 4 | 2 4 2 . 1 Penetration Max . | . . . . . Secondary Targets 3 | . . 1 . 2 Max Gunslinging Chain 1 | . . 1 . 1 Shots Hit Robots 88 | 16 24 27 . 21 Core Hits 33 | 7 7 11 . 8 Critical Hits 1 | . . . . 1 Critical Kills . | . . . . . Critical Parts Destroyed 1 | . . . . 1 Melee Attacks . | . . . . . Impact . | . . . . . Slashing . | . . . . . Piercing . | . . . . . Sneak Attacks . | . . . . . Combat Hostiles . | . . . . . Follow-up Attacks . | . . . . . Damage Inflicted 1007 | 146 263 364 . 234 Guns 998 | 146 263 355 . 234 Cannons . | . . . . . Explosions . | . . . . . Melee . | . . . . . Ramming 9 | . . 9 . . Kinetic 550 | 48 100 168 . 234 Thermal 448 | 98 163 187 . . Explosive . | . . . . . Electromagnetic . | . . . . . Impact . | . . . . . Slashing . | . . . . . Piercing . | . . . . . Highest Corruption . | . . . . . Average Corruption . | . . . . . Corruption Purged . | . . . . . Overload Shots . | . . . . . Overflow Damage . | . . . . . Projectiles . | . . . . . Explosions . | . . . . . Melee . | . . . . . Knockbacks . | . . . . . Impact . | . . . . . Kinetic . | . . . . . Secondary . | . . . . . Self-Inflicted Damage 4 | . . 4 . . Shots . | . . . . . Rammed 1 | . . 1 . . Targets Rammed 1 | . . 1 . . Kicked . | . . . . . Crushed . | . . . . . Highest Temperature 188 | 80 188 135 . 10 Average Temperature 58 | 38 99 48 . 4 Received Heat Transfer 252 | . 57 96 . 99 Siege Activations . | . . . . . Robots Corrupted . | . . . . . Combat Hostiles . | . . . . . Parts Fried . | . . . . . Impact Corruptions . | . . . . . Robots Melted . | . . . . . Combat Hostiles . | . . . . . Parts Melted 1 | . 1 . . . Heat Transferred 1332 | 296 481 555 . . Parts Sabotaged . | . . . . . Parts Stolen . | . . . . . Parts Stripped . | . . . . . Power Chain Reactions . | . . . . . Missiles Intercepted . | . . . . . Alert | -11 -10 -10 -10 -9 ------- Run | Scr Mat Min Exi Min Peak Influence 111 | 20 88 111 . 70 Average Influence 53 | 8 38 69 . 49 Maximum Alert Level . | . . . . . Low Security (%) 100 | 100 100 100 . 100 Level 1 . | . . . . . Level 2 . | . . . . . Level 3 . | . . . . . Level 4 . | . . . . . Level 5 . | . . . . . High Security . | . . . . . Max Security . | . . . . . Squads Dispatched . | . . . . . Investigation . | . . . . . Extermination . | . . . . . Reinforcement . | . . . . . Assault . | . . . . . Garrison . | . . . . . Intercept . | . . . . . Construction Impeded . | . . . . . Haulers Reinforced . | . . . . . Stealth | -11 -10 -10 -10 -9 --------- Run | Scr Mat Min Exi Min Distress Signals . | . . . . . Communications Jammed . | . . . . . Distress Signals . | . . . . . Times Spotted 19 | . 2 9 . 8 Peak Tracking Total 5 | . 2 3 . 5 Tactical Retreats 1 | . . . . 1 Traps | -11 -10 -10 -10 -9 ------- Run | Scr Mat Min Exi Min Traps Triggered . | . . . . . Indirectly . | . . . . . Trap Hack Attempts . | . . . . . Triggered . | . . . . . Disarmed 4 | . 4 . . . Reprogrammed . | . . . . . Reused . | . . . . . Traps Extracted . | . . . . . Installed . | . . . . . Triggered . | . . . . . Exploded 1 | . . . 1 . Machines | -11 -10 -10 -10 -9 ---------- Run | Scr Mat Min Exi Min Machines Disabled 2 | . . 2 . . Max in Single Turn 1 | . . 1 . . Machines Sabotaged . | . . . . . Garrisons Compromised . | . . . . . Overloaded Fab Kills . | . . . . . Fab Network Shutdowns . | . . . . . Hacking | -11 -10 -10 -10 -9 --------- Run | Scr Mat Min Exi Min Machines Accessed 1 | . 1 . . . Terminals 1 | . 1 . . . Fabricators . | . . . . . Repair Stations . | . . . . . Recycling Units . | . . . . . Scanalyzers . | . . . . . Garrison Access . | . . . . . Total Hacks 2 | . 2 . . . Successful 2 | . 2 . . . Failed . | . . . . . Catastrophic . | . . . . . Database Lockouts . | . . . . . Manual 3 | . 2 . 1 . Terminals 2 | . 2 . . . Fabricators . | . . . . . Repair Stations . | . . . . . Recycling Units . | . . . . . Scanalyzers . | . . . . . Garrison Access . | . . . . . Terminal Hacks 2 | . 2 . . . Disarm Traps 1 | . 1 . . . Zone Layout 1 | . 1 . . . Fabricator Hacks . | . . . . . Repair Station Hacks . | . . . . . Recycling Unit Hacks . | . . . . . Scanalyzer . | . . . . . Garrison Access Hacks . | . . . . . Unauthorized Hacks . | . . . . . Terminals . | . . . . . Fabricators . | . . . . . Repair Stations . | . . . . . Recycling Units . | . . . . . Scanalyzers . | . . . . . Garrison Access . | . . . . . Data Cores Recovered . | . . . . . Used . | . . . . . Hacking Detections 1 | . 1 . . . Full Trace Events . | . . . . . Feedback Events . | . . . . . Feedback Blocked . | . . . . . Robot Schematics Acquired . | . . . . . Robots Built . | . . . . . Matter . | . . . . . Time . | . . . . . Total Robot Build Rating . | . . . . . Part Schematics Acquired . | . . . . . Parts Built . | . . . . . Matter . | . . . . . Time . | . . . . . Total Part Build Rating . | . . . . . Parts Repaired . | . . . . . Time . | . . . . . Parts Recycled . | . . . . . Recycled Matter . | . . . . . Retrieved Matter . | . . . . . Retrieved Components . | . . . . . Parts Scanalyzed . | . . . . . Part Schematics Acquired . | . . . . . Parts Damaged . | . . . . . Bothacking | -11 -10 -10 -10 -9 ------------ Run | Scr Mat Min Exi Min Used RIF Installer . | . . . . . Robots Hacked . | . . . . . Non-combat . | . . . . . Combat . | . . . . . Robot Hacks Applied . | . . . . . Relay Couplers Released . | . . . . . Robots Rewired . | . . . . . Allies Hacked . | . . . . . Hacks Repelled . | . . . . . Allies | -11 -10 -10 -10 -9 -------- Run | Scr Mat Min Exi Min Total Allies 5 | . . 5 . . Largest Group 3 | . . 3 1 . Highest-Rated Group 49 | . . 49 31 . Highest-Rated Ally 31 | . . 31 31 . Total Orders . | . . . . . Ally Attacks 26 | . . 26 . . Total Damage 261 | . . 261 . . Kills 4 | . . 4 . . Allies Corrupted . | . . . . . Allies Melted . | . . . . . Intel | -11 -10 -10 -10 -9 ------- Run | Scr Mat Min Exi Min Robot Analysis Total . | . . . . . Derelict Logs Recovered 2 | . . 1 . 1 Drone Launches . | . . . . . Drone Recoveries . | . . . . . Exploration | -11 -10 -10 -10 -9 ------------- Run | Scr Mat Min Exi Min Turns Passed 1361 | 87 285 569 239 181 Spaces Moved 1157 | 59 253 511 229 105 Core 11 | 5 . . . 6 Treads . | . . . . . Legs . | . . . . . Wheels 1146 | 54 253 511 229 99 Hover . | . . . . . Flight . | . . . . . Fastest Speed 50 | 50 80 90 90 100 Average Speed 97 | 77 88 96 99 130 Slowest Speed 700 | 80 90 100 100 700 Overloaded Moves . | . . . . . Propulsion Burnouts . | . . . . . Robots Hopped . | . . . . . Cave-ins Triggered . | . . . . . Exploration Rate (%) 45 | 3 33 99 60 32 Regions Visited 4 Branch Regions 3 Pre-discovered Areas . | . . . . . Known Exits Taken . | . . . . . Unknown Exits Taken 4 | 1 1 1 1 . Scrap Searched 3 | . . 1 . 2 Spaces Dug . | . . . . . Terrain Destroyed . | . . . . . Melee . | . . . . . Projectile . | . . . . . AOE . | . . . . . Actions | -11 -10 -10 -10 -9 --------- Run | Scr Mat Min Exi Min Total 1284 | 79 284 554 241 126 Wait 28 | . 10 18 . . Move 1153 | 58 252 510 228 105 Hop . | . . . . . Pick Up 17 | 5 2 6 3 1 Fast Attach 10 | 5 1 1 3 . Attach 5 | 1 . 1 1 2 Detach 2 | . . 1 1 . Swap 3 | . 2 . . 1 Drop 9 | . 1 . 5 3 Fire 56 | 10 16 16 . 14 Melee . | . . . . . Ram 1 | . . 1 . . Kick . | . . . . . Crush . | . . . . . Escape Stasis . | . . . . . Rewire . | . . . . . Trap . | . . . . . Miscellaneous . | . . . . . Route ------- -11/Scrapyard -10/Materials -10/Mines (discovered 3 exits: [*Mat x2] / *Exi) -10/Exiles (discovered 2 exits: [*Min x2]) -9/Mines History --------- Turn | Location | Event 21 | -11/Scrapyard | Discovered new exit (range 14) 88 | -11/Scrapyard | Entered Materials 136 | -10/Materials | Discovered new exit (range 15) 316 | -10/Materials | Build established: Mutant 373 | -10/Materials | Entered Mines 379 | -10/Mines | Assisted by bots powering up and referring to "LRC-V3" 409 | -10/Mines | Discovered new exit (range 12) 421 | -10/Mines | Joined a pair of Derelicts in attacking an 0b10 outpost 607 | -10/Mines | Discovered new exit (range 13) 665 | -10/Mines | Learned location of 1 exit from Materials 687 | -10/Mines | Met a Derelict testing a Signal Generator 692 | -10/Mines | Found Signal Generator 937 | -10/Mines | Deemed a non-threat by the Exiles lab entrance 938 | -10/Mines | Discovered new exit (range 5) 942 | -10/Mines | Entered Exiles 942 | -10/Exiles | Accompanied by 1 ally 956 | -10/Exiles | Discovered new exit (range 15) 970 | -10/Exiles | Met 8R-AWN 972 | -10/Exiles | Led the pair of lost Derelicts to a safe place 985 | -10/Exiles | Met EX-HEX 1012 | -10/Exiles | Met EX-BIN 1023 | -10/Exiles | Aligned with FarCom system 1024 | -10/Exiles | Given EX-Vault access code 1047 | -10/Exiles | Opened EX-Vault 1052 | -10/Exiles | Found Prototype Device 1052 | -10/Exiles | Identified Skeleton Box 1057 | -10/Exiles | Found Prototype Slashing Weapon 1057 | -10/Exiles | Identified Longsword +1 1090 | -10/Exiles | Warned to stay clear of 0b10 Research branches 1098 | -10/Exiles | Exiles lab attacked by MAIN.C 1171 | -10/Exiles | Discovered new exit (range 12) 1181 | -10/Exiles | Left Exiles lab with Longsword +1 1181 | -10/Exiles | Entered Mines 1215 | -9/Mines | Learned Materials non-interactive machine intel 1266 | -9/Mines | Assembled infested the area 1271 | -9/Mines | Assisted by a Guerilla fighting off Assembled 1350 | -9/Mines | Core integrity fell below 50% 1358 | -9/Mines | Core integrity fell below 20% 1362 | -9/Mines | Destroyed by as-61464 with Assembled Heavy Rifle Last Messages --------------- 01252_ Found Plasma Cutter. 01252_ Found Assault Rifle. 01252_ Found Hcp. Matter Pod. 01252_ Found Imp. Targeting Computer. 01253_ Acquired 33 matter. 01266_ ALERT: Infestation in the mines, dispatching Demolisher response squad. 01271_ A derelict emerges from the shadows: "You need to get out of here! I've been tracking a group of Assembled to figure out where they're coming from, and they're closing on this area, come on!" 01286_ T-07 Excavator is excavating. 01312_ Assault Rifle severed. 01314_ Dropped Longsword +1. 01317_ Wheel destroyed. 01318_ as-30478 destroyed. 01318_ Switching to secondary target: as-23140. 01328_ Acquired Longsword +1. 01343_ Assault Rifle destroyed. 01345_ Lgt. Assault Rifle destroyed. 01345_ Lgt. Nuclear Core destroyed. Map ----- +----------------------------------------------------+ | | | | | | | | | | | | | | | | | | | | | | | | | | | | | | | | | | | | | | | | | | | ???????????????????????????????? | | ???????????########????????????? | | ???######### ##???????????? | | ?### ##########??? | | ## ## %[a a@a #??? | | # #### ######### #??? | | #####??######????????????? | | ##????????????????????????? | | ##?????????????????????????? | | # ##??????????????????????????? | | ## #???????????????????????????? | | ## #####???????????????????????? | | #???????????????????????? | | ## ### #???????????????????????? | | ?# #???????????????????????????? | | ?# #???????????????????????????? | | ?# #???????????????????????????? | | ?# #???????????????????????????? | | ?# ???????????????????????????? | | ?###???????????????????????????? | | ???????????????????????????????? | | ???????????????????????????????? | | ???????????????????????????????? | | ???????????????????????????????? | | ???????????????????????????????? | | ###????????????????????????????? | | ##???????????????????????????? | | #???????????????????????????? | | #??????????????????????? | +----------------------------------------------------+ Best States ------------- Heat Dissipation 25 Energy Generation 14 Energy Capacity 160 Matter Stores 300 Matter Capacity 300 Sight Range 16 Terrain Scan Density 10 Resistance: KI 20 Resistance: TH 20 Resistance: EX 20 Resistance: EM 20 Resistance: I 20 Resistance: S 20 Resistance: P 20 Evasion (%) 44 Offensive Hacking 10 Item Schematics ----------------- None Robot Schematics ------------------ None Fabricated ------------ Nothing Alien Tech Used ----------------- None Achievements -------------- None Challenges ------------ None Game ------ Seed BeamFissionMicroactuators Manual? 0 Play Time 00:14:19 Cumulative 34.3 hours Start 2020.07.16 @ 20:10:44 End 2020.07.16 @ 20:23:27 Sessions 1 Manual Loads 0 Difficulty Adventurer Special Mode None Game No. 55 Rogue 1 Adventurer 54 Explorer 0 Win Type - Total 0 Types 0/0/0/0/0/0/0 Lore% 25 Gallery% 40 Achievement% 31 Wizard Run 0 Options --------- ASCII 0 Keyboard 1 Movement Numpad Keybinds 0 Fullscreen 1 Font 18/SmallcapsGlow Map View 76x50 Tactical HUD 1 Map Filters NONE Filters NONE Steam 1 RUN: c9011926-572d-4830-9417-78ae62c95a5b